[Event "Titled Tuesday Blitz December 14 2021"]
[White "Gabrielian, Artur"]
[Black "Martins, Bruno Andre Leite"]
[WhiteFideId "4131002"]
[BlackFideId "1942255"]
[WhiteElo "2440"]
[BlackElo "2137"]
[Result "1/2-1/2"]
[Round "09"]
[TimeControl "180+1"]
[Date "2021.12.14"]
[WhiteClock "0:00:07"]
[BlackClock "0:00:13"]

1. e4 {[%clk 0:03:00]}  c6 {[%clk 0:02:38]} 2. d4 {[%clk 0:03:00]}  d5 {[%clk 0:02:32]} 3. e5 {[%clk 0:03:00]}  Bf5 {[%clk 0:02:31]} 4. h4 {[%clk 0:03:00]}  Qc8 {[%clk 0:02:29]} 5. h5 {[%clk 0:02:56]}  h6 {[%clk 0:02:19]} 6. c4 {[%clk 0:02:55]}  e6 {[%clk 0:02:17]} 7. Nc3 {[%clk 0:02:54]}  Ne7 {[%clk 0:02:12]} 8. Be3 {[%clk 0:02:42]}  Nd7 {[%clk 0:02:12]} 9. Rc1 {[%clk 0:02:41]}  dxc4 {[%clk 0:02:08]} 10. Bxc4 {[%clk 0:02:40]}  Nb6 {[%clk 0:02:08]} 11. Bb3 {[%clk 0:02:37]}  a5 {[%clk 0:02:08]} 12. Nge2 {[%clk 0:02:32]}  Ned5 {[%clk 0:02:03]} 13. Nxd5 {[%clk 0:02:29]}  Nxd5 {[%clk 0:02:00]} 14. O-O {[%clk 0:02:21]}  Qd7 {[%clk 0:01:52]} 15. Ng3 {[%clk 0:02:20]}  Bh7 {[%clk 0:01:50]} 16. Qf3 {[%clk 0:02:19]}  a4 {[%clk 0:01:47]} 17. Bc4 {[%clk 0:02:13]}  a3 {[%clk 0:01:45]} 18. bxa3 {[%clk 0:02:05]}  Bxa3 {[%clk 0:01:44]} 19. Rcd1 {[%clk 0:02:00]}  O-O {[%clk 0:01:44]} 20. Ne4 {[%clk 0:01:53]}  Bxe4 {[%clk 0:01:36]} 21. Qxe4 {[%clk 0:01:53]}  f5 {[%clk 0:01:37]} 22. exf6 {[%clk 0:01:48]}  Rxf6 {[%clk 0:01:37]} 23. Bd3 {[%clk 0:01:45]}  Rf5 {[%clk 0:01:37]} 24. Qg4 {[%clk 0:01:45]}  Rf6 {[%clk 0:01:34]} 25. Qe4 {[%clk 0:01:29]}  Rf5 {[%clk 0:01:33]} 26. g4 {[%clk 0:01:29]}  Nf6 {[%clk 0:01:23]} 27. Qg2 {[%clk 0:01:25]}  Rfa5 {[%clk 0:01:24]} 28. Rfe1 {[%clk 0:01:04]}  Qd5 {[%clk 0:01:20]} 29. Qxd5 {[%clk 0:00:57]}  exd5 {[%clk 0:01:21]} 30. f3 {[%clk 0:00:50]}  Bd6 {[%clk 0:01:18]} 31. Bb1 {[%clk 0:00:49]}  Re8 {[%clk 0:01:17]} 32. Bd2 {[%clk 0:00:45]}  Ra4 {[%clk 0:01:15]} 33. Rxe8+ {[%clk 0:00:45]}  Nxe8 {[%clk 0:01:16]} 34. Re1 {[%clk 0:00:29]}  Nc7 {[%clk 0:01:15]} 35. Be3 {[%clk 0:00:23]}  Ne6 {[%clk 0:01:15]} 36. Bg6 {[%clk 0:00:15]}  Nxd4 {[%clk 0:01:09]} 37. Bxd4 {[%clk 0:00:15]}  Rxd4 {[%clk 0:01:09]} 38. Re8+ {[%clk 0:00:15]}  Bf8 {[%clk 0:01:10]} 39. Rb8 {[%clk 0:00:16]}  Ra4 {[%clk 0:00:58]} 40. Rxb7 {[%clk 0:00:15]}  Rxa2 {[%clk 0:00:58]} 41. Rb8 {[%clk 0:00:15]}  Ra7 {[%clk 0:00:53]} 42. f4 {[%clk 0:00:14]}  Rc7 {[%clk 0:00:47]} 43. Rd8 {[%clk 0:00:13]}  c5 {[%clk 0:00:43]} 44. Rxd5 {[%clk 0:00:12]}  c4 {[%clk 0:00:44]} 45. Rd8 {[%clk 0:00:12]}  c3 {[%clk 0:00:42]} 46. Bc2 {[%clk 0:00:12]}  Kf7 {[%clk 0:00:40]} 47. g5 {[%clk 0:00:10]}  Ke7 {[%clk 0:00:37]} 48. Rd5 {[%clk 0:00:10]}  Ke6 {[%clk 0:00:35]} 49. Bb3 {[%clk 0:00:09]}  Ke7 {[%clk 0:00:32]} 50. Bc2 {[%clk 0:00:09]}  Ke6 {[%clk 0:00:31]} 51. Re5+ {[%clk 0:00:09]}  Kd6 {[%clk 0:00:25]} 52. Re8 {[%clk 0:00:09]}  Be7 {[%clk 0:00:23]} 53. gxh6 {[%clk 0:00:09]}  gxh6 {[%clk 0:00:24]} 54. Rh8 {[%clk 0:00:09]}  Kd5 {[%clk 0:00:20]} 55. Rxh6 {[%clk 0:00:09]}  Bc5+ {[%clk 0:00:20]} 56. Kf1 {[%clk 0:00:09]}  Ra7 {[%clk 0:00:18]} 57. Ke2 {[%clk 0:00:09]}  Kc4 {[%clk 0:00:12]} 58. Rc6 {[%clk 0:00:06]}  Ra2 {[%clk 0:00:11]} 59. Kd1 {[%clk 0:00:06]}  Ra1+ {[%clk 0:00:12]} 60. Ke2 {[%clk 0:00:07]}  Ra2 {[%clk 0:00:12]} 61. Kd1 {[%clk 0:00:07]}  Ra1+ {[%clk 0:00:13]} 62. Ke2 {[%clk 0:00:07]}  Ra2 {[%clk 0:00:13]} 1/2-1/2


[Site "https://www.chess.com"]

[Event "Titled Tuesday Blitz December 14 2021"]
[White "Keymer, Vincent"]
[Black "Kanyamarala, Tarun"]
[WhiteFideId "12940690"]
[BlackFideId "45004714"]
[WhiteElo "2557"]
[BlackElo "2077"]
[Result "1-0"]
[Round "09"]
[TimeControl "180+1"]
[Date "2021.12.14"]
[WhiteClock "0:00:11"]
[BlackClock "0:00:03"]

1. Nf3 {[%clk 0:03:00]}  d5 {[%clk 0:02:58]} 2. e3 {[%clk 0:02:55]}  c5 {[%clk 0:02:51]} 3. b3 {[%clk 0:02:55]}  Nc6 {[%clk 0:02:47]} 4. Bb5 {[%clk 0:02:54]}  Bd7 {[%clk 0:02:46]} 5. Bb2 {[%clk 0:02:51]}  Nf6 {[%clk 0:02:47]} 6. O-O {[%clk 0:02:50]}  e6 {[%clk 0:02:47]} 7. Bxc6 {[%clk 0:02:50]}  Bxc6 {[%clk 0:02:47]} 8. Ne5 {[%clk 0:02:51]}  Rc8 {[%clk 0:02:47]} 9. f4 {[%clk 0:02:47]}  Be7 {[%clk 0:02:47]} 10. d3 {[%clk 0:02:44]}  O-O {[%clk 0:02:46]} 11. Nd2 {[%clk 0:02:44]}  Ne8 {[%clk 0:02:30]} 12. f5 {[%clk 0:02:32]}  exf5 {[%clk 0:02:26]} 13. Rxf5 {[%clk 0:02:28]}  Bf6 {[%clk 0:02:25]} 14. Qf3 {[%clk 0:01:58]}  g6 {[%clk 0:02:04]} 15. Nxc6 {[%clk 0:01:46]}  Rxc6 {[%clk 0:01:59]} 16. Rxd5 {[%clk 0:01:44]}  Qe7 {[%clk 0:01:44]} 17. d4 {[%clk 0:00:55]}  cxd4 {[%clk 0:01:37]} 18. Ne4 {[%clk 0:00:49]}  Rxc2 {[%clk 0:01:11]} 19. Bxd4 {[%clk 0:00:46]}  Bxd4 {[%clk 0:01:07]} 20. exd4 {[%clk 0:00:44]}  f5 {[%clk 0:01:00]} 21. Nc5 {[%clk 0:00:20]}  Qh4 {[%clk 0:00:41]} 22. h3 {[%clk 0:00:06]}  Nf6 {[%clk 0:00:39]} 23. Rd6 {[%clk 0:00:07]}  Ne4 {[%clk 0:00:36]} 24. Rd7 {[%clk 0:00:03]}  Nxc5 {[%clk 0:00:33]} 25. dxc5 {[%clk 0:00:02]}  Rxc5 {[%clk 0:00:31]} 26. Qxb7 {[%clk 0:00:01]}  Qf6 {[%clk 0:00:25]} 27. Rf1 {[%clk 0:00:02]}  Qb6 {[%clk 0:00:19]} 28. Qxa7 {[%clk 0:00:02]}  Qxa7 {[%clk 0:00:15]} 29. Rxa7 {[%clk 0:00:02]}  Rc2 {[%clk 0:00:14]} 30. Rf2 {[%clk 0:00:03]}  Rc1+ {[%clk 0:00:14]} 31. Kh2 {[%clk 0:00:03]}  Rb8 {[%clk 0:00:13]} 32. Re2 {[%clk 0:00:03]}  Ra1 {[%clk 0:00:13]} 33. Ree7 {[%clk 0:00:03]}  h5 {[%clk 0:00:08]} 34. Rg7+ {[%clk 0:00:04]}  Kf8 {[%clk 0:00:08]} 35. Rxg6 {[%clk 0:00:04]}  Rxb3 {[%clk 0:00:08]} 36. axb3 {[%clk 0:00:03]}  Rxa7 {[%clk 0:00:08]} 37. Rf6+ {[%clk 0:00:04]}  Kg7 {[%clk 0:00:08]} 38. Rxf5 {[%clk 0:00:04]}  Ra3 {[%clk 0:00:08]} 39. Rf3 {[%clk 0:00:05]}  Kg6 {[%clk 0:00:08]} 40. Kg3 {[%clk 0:00:05]}  Kg5 {[%clk 0:00:08]} 41. Rc3 {[%clk 0:00:05]}  h4+ {[%clk 0:00:08]} 42. Kf3 {[%clk 0:00:06]}  Ra1 {[%clk 0:00:09]} 43. Rc5+ {[%clk 0:00:06]}  Kg6 {[%clk 0:00:10]} 44. Kg4 {[%clk 0:00:07]}  Rb1 {[%clk 0:00:10]} 45. Rc2 {[%clk 0:00:06]}  Rxb3 {[%clk 0:00:08]} 46. Kxh4 {[%clk 0:00:07]}  Kh6 {[%clk 0:00:06]} 47. Rc6+ {[%clk 0:00:07]}  Kg7 {[%clk 0:00:07]} 48. g4 {[%clk 0:00:07]}  Rb5 {[%clk 0:00:07]} 49. g5 {[%clk 0:00:07]}  Rb3 {[%clk 0:00:07]} 50. Kg4 {[%clk 0:00:07]}  Kf7 {[%clk 0:00:07]} 51. h4 {[%clk 0:00:07]}  Kg7 {[%clk 0:00:07]} 52. Kh5 {[%clk 0:00:08]}  Rb4 {[%clk 0:00:07]} 53. Rc7+ {[%clk 0:00:08]}  Kg8 {[%clk 0:00:07]} 54. Ra7 {[%clk 0:00:09]}  Rb6 {[%clk 0:00:06]} 55. g6 {[%clk 0:00:09]}  Rf6 {[%clk 0:00:04]} 56. Kg5 {[%clk 0:00:09]}  Rf1 {[%clk 0:00:03]} 57. h5 {[%clk 0:00:09]}  Rf8 {[%clk 0:00:02]} 58. Kh6 {[%clk 0:00:09]}  Rd8 {[%clk 0:00:02]} 59. Rg7+ {[%clk 0:00:09]}  Kh8 {[%clk 0:00:01]} 60. Rh7+ {[%clk 0:00:10]}  Kg8 {[%clk 0:00:01]} 61. Re7 {[%clk 0:00:11]}  Kh8 {[%clk 0:00:01]} 62. Kg5 {[%clk 0:00:11]}  Kg8 {[%clk 0:00:02]} 63. Re5 {[%clk 0:00:11]}  Rd6 {[%clk 0:00:02]} 64. Re8+ {[%clk 0:00:11]}  Kg7 {[%clk 0:00:03]} 65. h6# {[%clk 0:00:11]} 1-0


[Site "https://www.chess.com"]

[Event "Titled Tuesday Blitz December 14 2021"]
[White "Makarian, Rudik"]
[Black "Chigaev, Maksim"]
[WhiteFideId "44105681"]
[BlackFideId "4108116"]
[WhiteElo "2486"]
[BlackElo "2546"]
[Result "0-1"]
[Round "09"]
[TimeControl "180+1"]
[Date "2021.12.14"]
[WhiteClock "0:00:11"]
[BlackClock "0:00:42"]

1. d4 {[%clk 0:02:24]}  e6 {[%clk 0:02:59]} 2. c4 {[%clk 0:02:23]}  Nf6 {[%clk 0:02:59]} 3. Nf3 {[%clk 0:02:23]}  d5 {[%clk 0:02:59]} 4. Nc3 {[%clk 0:02:24]}  Bb4 {[%clk 0:02:50]} 5. Qa4+ {[%clk 0:02:23]}  Nc6 {[%clk 0:02:50]} 6. a3 {[%clk 0:02:24]}  Bxc3+ {[%clk 0:02:44]} 7. bxc3 {[%clk 0:02:25]}  Bd7 {[%clk 0:02:41]} 8. Qc2 {[%clk 0:02:21]}  dxc4 {[%clk 0:02:41]} 9. e4 {[%clk 0:02:19]}  Na5 {[%clk 0:02:40]} 10. Bg5 {[%clk 0:02:01]}  h6 {[%clk 0:02:40]} 11. Bh4 {[%clk 0:02:00]}  g5 {[%clk 0:02:28]} 12. Bg3 {[%clk 0:02:00]}  Bc6 {[%clk 0:02:28]} 13. Be5 {[%clk 0:01:26]}  Bxe4 {[%clk 0:02:10]} 14. Qa4+ {[%clk 0:01:26]}  Nc6 {[%clk 0:02:11]} 15. Nd2 {[%clk 0:01:24]}  Bd5 {[%clk 0:02:01]} 16. Nxc4 {[%clk 0:01:18]}  O-O {[%clk 0:01:30]} 17. Ne3 {[%clk 0:01:14]}  Nxe5 {[%clk 0:01:26]} 18. dxe5 {[%clk 0:01:15]}  Bc6 {[%clk 0:01:22]} 19. Qc2 {[%clk 0:00:34]}  Nd5 {[%clk 0:01:22]} 20. Rd1 {[%clk 0:00:33]}  Nxe3 {[%clk 0:01:14]} 21. fxe3 {[%clk 0:00:34]}  Qe7 {[%clk 0:01:14]} 22. h4 {[%clk 0:00:35]}  f5 {[%clk 0:01:00]} 23. exf6 {[%clk 0:00:26]}  Qxf6 {[%clk 0:00:59]} 24. Bd3 {[%clk 0:00:20]}  Qe5 {[%clk 0:00:48]} 25. Rf1 {[%clk 0:00:13]}  Qxe3+ {[%clk 0:00:45]} 26. Qe2 {[%clk 0:00:11]}  Rxf1+ {[%clk 0:00:41]} 27. Kxf1 {[%clk 0:00:11]}  Rf8+ {[%clk 0:00:41]} 28. Ke1 {[%clk 0:00:11]}  Qg3+ {[%clk 0:00:42]} 29. Kd2 {[%clk 0:00:11]}  Rf2 {[%clk 0:00:42]} 0-1


[Site "https://www.chess.com"]

[Event "Titled Tuesday Blitz December 14 2021"]
[White "Nesterov, Arseniy"]
[Black "Blohberger, Felix"]
[WhiteFideId "24198455"]
[BlackFideId "1632051"]
[WhiteElo "2489"]
[BlackElo "2416"]
[Result "1-0"]
[Round "09"]
[TimeControl "180+1"]
[Date "2021.12.14"]
[WhiteClock "0:00:02"]
[BlackClock "0:00:04"]

1. d4 {[%clk 0:03:00]}  Nf6 {[%clk 0:02:52]} 2. c4 {[%clk 0:03:01]}  g6 {[%clk 0:02:50]} 3. Nc3 {[%clk 0:03:01]}  Bg7 {[%clk 0:02:48]} 4. e4 {[%clk 0:03:01]}  d6 {[%clk 0:02:49]} 5. Be2 {[%clk 0:03:01]}  O-O {[%clk 0:02:48]} 6. Be3 {[%clk 0:03:02]}  e5 {[%clk 0:02:42]} 7. d5 {[%clk 0:03:02]}  Na6 {[%clk 0:02:37]} 8. g4 {[%clk 0:03:01]}  Nc5 {[%clk 0:02:36]} 9. f3 {[%clk 0:03:01]}  h5 {[%clk 0:02:25]} 10. g5 {[%clk 0:03:01]}  Nh7 {[%clk 0:02:24]} 11. h4 {[%clk 0:03:01]}  f6 {[%clk 0:02:22]} 12. gxf6 {[%clk 0:03:01]}  Bxf6 {[%clk 0:02:20]} 13. Bf2 {[%clk 0:03:02]}  Be7 {[%clk 0:02:18]} 14. Kd2 {[%clk 0:03:02]}  a5 {[%clk 0:02:12]} 15. Kc2 {[%clk 0:02:54]}  Rf4 {[%clk 0:02:11]} 16. Qe1 {[%clk 0:02:50]}  Kg7 {[%clk 0:02:10]} 17. Nh3 {[%clk 0:02:11]}  Rxh4 {[%clk 0:02:07]} 18. Bxh4 {[%clk 0:02:10]}  Bxh4 {[%clk 0:02:08]} 19. Nf2 {[%clk 0:02:05]}  Qg5 {[%clk 0:01:59]} 20. Qf1 {[%clk 0:02:00]}  Bd7 {[%clk 0:01:55]} 21. Nd3 {[%clk 0:01:49]}  Nxd3 {[%clk 0:01:50]} 22. Bxd3 {[%clk 0:01:50]}  Rf8 {[%clk 0:01:48]} 23. Qe2 {[%clk 0:01:41]}  Qf4 {[%clk 0:01:41]} 24. Qg2 {[%clk 0:01:25]}  Bg5 {[%clk 0:01:33]} 25. Raf1 {[%clk 0:01:24]}  h4 {[%clk 0:01:33]} 26. Kb1 {[%clk 0:01:10]}  Qg3 {[%clk 0:01:31]} 27. Qe2 {[%clk 0:00:30]}  h3 {[%clk 0:01:23]} 28. c5 {[%clk 0:00:29]}  dxc5 {[%clk 0:01:17]} 29. Bb5 {[%clk 0:00:29]}  Bc8 {[%clk 0:01:17]} 30. Bc4 {[%clk 0:00:24]}  Qg2 {[%clk 0:01:08]} 31. Qd1 {[%clk 0:00:12]}  Rf6 {[%clk 0:01:02]} 32. Nb5 {[%clk 0:00:11]}  Be3 {[%clk 0:00:58]} 33. Nxc7 {[%clk 0:00:10]}  Bd4 {[%clk 0:00:58]} 34. Qe2 {[%clk 0:00:06]}  Rxf3 {[%clk 0:00:52]} 35. Rxf3 {[%clk 0:00:03]}  Qxh1+ {[%clk 0:00:53]} 36. Rf1 {[%clk 0:00:04]}  Qg2 {[%clk 0:00:52]} 37. Ne6+ {[%clk 0:00:02]}  Kh6 {[%clk 0:00:40]} 38. Re1 {[%clk 0:00:01]}  Ng5 {[%clk 0:00:30]} 39. Nxd4 {[%clk 0:00:01]}  cxd4 {[%clk 0:00:28]} 40. Qd1 {[%clk 0:00:01]}  Nxe4 {[%clk 0:00:20]} 41. d6 {[%clk 0:00:01]}  Bf5 {[%clk 0:00:15]} 42. Bd3 {[%clk 0:00:01]}  Nxd6 {[%clk 0:00:08]} 43. Bxf5 {[%clk 0:00:01]}  Nxf5 {[%clk 0:00:08]} 44. Qc1+ {[%clk 0:00:01]}  Ne3 {[%clk 0:00:08]} 45. Qc8 {[%clk 0:00:02]}  Qe4+ {[%clk 0:00:07]} 46. Kc1 {[%clk 0:00:02]}  Qc6+ {[%clk 0:00:05]} 47. Qxc6 {[%clk 0:00:03]}  bxc6 {[%clk 0:00:06]} 48. Rh1 {[%clk 0:00:03]}  Kg5 {[%clk 0:00:05]} 49. Rxh3 {[%clk 0:00:04]}  c5 {[%clk 0:00:04]} 50. Kd2 {[%clk 0:00:03]}  Kf4 {[%clk 0:00:04]} 51. Rh8 {[%clk 0:00:03]}  g5 {[%clk 0:00:04]} 52. Rf8+ {[%clk 0:00:04]}  Ke4 {[%clk 0:00:05]} 53. Rc8 {[%clk 0:00:03]}  g4 {[%clk 0:00:05]} 54. Rxc5 {[%clk 0:00:02]}  g3 {[%clk 0:00:06]} 55. Rc8 {[%clk 0:00:03]}  Kf3 {[%clk 0:00:04]} 56. Rf8+ {[%clk 0:00:03]}  Kg4 {[%clk 0:00:04]} 57. Rg8+ {[%clk 0:00:03]}  Kf4 {[%clk 0:00:04]} 58. Rf8+ {[%clk 0:00:03]}  Nf5 {[%clk 0:00:04]} 59. Ke2 {[%clk 0:00:04]}  e4 {[%clk 0:00:05]} 60. a3 {[%clk 0:00:03]}  d3+ {[%clk 0:00:05]} 61. Kf1 {[%clk 0:00:04]}  d2 {[%clk 0:00:03]} 62. Ke2 {[%clk 0:00:04]}  e3 {[%clk 0:00:03]} 63. Rg8 {[%clk 0:00:03]}  Nd4+ {[%clk 0:00:02]} 64. Kd1 {[%clk 0:00:04]}  Nf3 {[%clk 0:00:02]} 65. Ke2 {[%clk 0:00:04]}  Nd4+ {[%clk 0:00:02]} 66. Kd1 {[%clk 0:00:04]}  Nf3 {[%clk 0:00:02]} 67. Ke2 {[%clk 0:00:05]}  Ke4 {[%clk 0:00:02]} 68. Rg4+ {[%clk 0:00:04]}  Kf5 {[%clk 0:00:01]} 69. Rxg3 {[%clk 0:00:05]}  Nd4+ {[%clk 0:00:02]} 70. Kd1 {[%clk 0:00:05]}  Ke4 {[%clk 0:00:02]} 71. Rg2 {[%clk 0:00:03]}  Kd3 {[%clk 0:00:02]} 72. Rg3 {[%clk 0:00:03]}  a4 {[%clk 0:00:02]} 73. Rh3 {[%clk 0:00:04]}  Nc2 {[%clk 0:00:02]} 74. Rg3 {[%clk 0:00:04]}  Nd4 {[%clk 0:00:03]} 75. Rh3 {[%clk 0:00:04]}  Nf5 {[%clk 0:00:03]} 76. Rf3 {[%clk 0:00:04]}  Ke4 {[%clk 0:00:04]} 77. Rh3 {[%clk 0:00:03]}  Nd6 {[%clk 0:00:05]} 78. Ke2 {[%clk 0:00:03]}  Nb5 {[%clk 0:00:04]} 79. Rxe3+ {[%clk 0:00:03]}  Kd4 {[%clk 0:00:04]} 80. Kxd2 {[%clk 0:00:04]}  Nd6 {[%clk 0:00:03]} 81. Rd3+ {[%clk 0:00:04]}  Kc5 {[%clk 0:00:03]} 82. Kc2 {[%clk 0:00:02]}  Nb5 {[%clk 0:00:03]} 83. Rh3 {[%clk 0:00:02]}  Kc4 {[%clk 0:00:03]} 84. Rh4+ {[%clk 0:00:03]}  Nd4+ {[%clk 0:00:04]} 85. Kd2 {[%clk 0:00:03]}  Kc5 {[%clk 0:00:04]} 86. Kd3 {[%clk 0:00:02]} 1-0


[Site "https://www.chess.com"]

[Event "Titled Tuesday Blitz December 14 2021"]
[White "Paravyan, David"]
[Black "Svane, Frederik"]
[WhiteFideId "4194985"]
[BlackFideId "12923044"]
[WhiteElo "2656"]
[BlackElo "2459"]
[Result "1-0"]
[Round "09"]
[TimeControl "180+1"]
[Date "2021.12.14"]
[WhiteClock "0:00:11"]
[BlackClock "0:00:02"]

1. e4 {[%clk 0:03:00]}  c5 {[%clk 0:02:59]} 2. Nf3 {[%clk 0:03:00]}  g6 {[%clk 0:03:00]} 3. d4 {[%clk 0:02:55]}  cxd4 {[%clk 0:03:00]} 4. Nxd4 {[%clk 0:02:56]}  Nc6 {[%clk 0:03:01]} 5. c4 {[%clk 0:02:54]}  Nf6 {[%clk 0:03:01]} 6. Nc3 {[%clk 0:02:54]}  d6 {[%clk 0:03:02]} 7. Be2 {[%clk 0:02:48]}  Nxd4 {[%clk 0:03:00]} 8. Qxd4 {[%clk 0:02:49]}  Bg7 {[%clk 0:03:00]} 9. Be3 {[%clk 0:02:49]}  O-O {[%clk 0:02:59]} 10. Qd3 {[%clk 0:02:49]}  Nd7 {[%clk 0:02:57]} 11. O-O {[%clk 0:02:49]}  Nc5 {[%clk 0:02:57]} 12. Qd2 {[%clk 0:02:48]}  Qa5 {[%clk 0:02:33]} 13. Bh6 {[%clk 0:01:59]}  Bxh6 {[%clk 0:02:10]} 14. Qxh6 {[%clk 0:02:00]}  Be6 {[%clk 0:02:11]} 15. f4 {[%clk 0:01:56]}  Qb6 {[%clk 0:02:10]} 16. f5 {[%clk 0:00:55]}  Nxe4+ {[%clk 0:02:04]} 17. Kh1 {[%clk 0:00:54]}  Nxc3 {[%clk 0:01:57]} 18. fxe6 {[%clk 0:00:54]}  Nxe2 {[%clk 0:01:47]} 19. Rxf7 {[%clk 0:00:51]}  Rxf7 {[%clk 0:01:42]} 20. exf7+ {[%clk 0:00:52]}  Kxf7 {[%clk 0:01:43]} 21. Qxh7+ {[%clk 0:00:51]}  Ke6 {[%clk 0:00:59]} 22. Qxg6+ {[%clk 0:00:47]}  Kd7 {[%clk 0:00:59]} 23. Qg4+ {[%clk 0:00:47]}  Kc7 {[%clk 0:01:00]} 24. Qxe2 {[%clk 0:00:47]}  e5 {[%clk 0:00:59]} 25. Rf1 {[%clk 0:00:46]}  Qd4 {[%clk 0:00:57]} 26. Rf7+ {[%clk 0:00:40]}  Kb6 {[%clk 0:00:57]} 27. Qf3 {[%clk 0:00:39]}  Qxc4 {[%clk 0:00:31]} 28. Qxb7+ {[%clk 0:00:39]}  Ka5 {[%clk 0:00:27]} 29. h3 {[%clk 0:00:35]}  Qxa2 {[%clk 0:00:16]} 30. Qxa7+ {[%clk 0:00:33]}  Kb4 {[%clk 0:00:14]} 31. Qb6+ {[%clk 0:00:20]}  Kc4 {[%clk 0:00:14]} 32. Qc6+ {[%clk 0:00:19]}  Kd4 {[%clk 0:00:11]} 33. Qxd6+ {[%clk 0:00:18]}  Qd5 {[%clk 0:00:04]} 34. Qb4+ {[%clk 0:00:18]}  Ke3 {[%clk 0:00:03]} 35. Rf3+ {[%clk 0:00:18]}  Ke2 {[%clk 0:00:03]} 36. Qc3 {[%clk 0:00:12]}  e4 {[%clk 0:00:02]} 37. Re3+ {[%clk 0:00:11]}  Kf2 {[%clk 0:00:02]} 38. Qe1# {[%clk 0:00:11]} 1-0


[Site "https://www.chess.com"]

[Event "Titled Tuesday Blitz December 14 2021"]
[White "Rosenberg, Evan S"]
[Black "Matinian, Nikita"]
[WhiteFideId "2019299"]
[BlackFideId "24129100"]
[WhiteElo "2448"]
[BlackElo "2422"]
[Result "0-1"]
[Round "09"]
[TimeControl "180+1"]
[Date "2021.12.14"]
[WhiteClock "0:00:01"]
[BlackClock "0:01:17"]

1. Nf3 {[%clk 0:03:00]}  Nf6 {[%clk 0:02:59]} 2. c4 {[%clk 0:03:00]}  g6 {[%clk 0:02:59]} 3. Nc3 {[%clk 0:03:00]}  Bg7 {[%clk 0:03:00]} 4. e4 {[%clk 0:03:00]}  O-O {[%clk 0:03:00]} 5. d4 {[%clk 0:03:01]}  d6 {[%clk 0:03:01]} 6. h3 {[%clk 0:03:01]}  e5 {[%clk 0:03:00]} 7. dxe5 {[%clk 0:03:02]}  dxe5 {[%clk 0:03:00]} 8. Qxd8 {[%clk 0:03:03]}  Rxd8 {[%clk 0:03:01]} 9. Bg5 {[%clk 0:03:03]}  Re8 {[%clk 0:02:57]} 10. Nd5 {[%clk 0:03:03]}  Nxd5 {[%clk 0:02:56]} 11. cxd5 {[%clk 0:03:04]}  c6 {[%clk 0:02:56]} 12. Bc4 {[%clk 0:03:03]}  b5 {[%clk 0:02:56]} 13. Bb3 {[%clk 0:03:04]}  a5 {[%clk 0:02:57]} 14. a4 {[%clk 0:03:02]}  bxa4 {[%clk 0:02:55]} 15. Bxa4 {[%clk 0:02:49]}  Bd7 {[%clk 0:02:55]} 16. Nd2 {[%clk 0:02:15]}  cxd5 {[%clk 0:02:52]} 17. exd5 {[%clk 0:02:11]}  e4 {[%clk 0:02:50]} 18. Nc4 {[%clk 0:02:07]}  Bxa4 {[%clk 0:02:47]} 19. Rxa4 {[%clk 0:02:07]}  Nd7 {[%clk 0:02:48]} 20. O-O {[%clk 0:01:59]}  f5 {[%clk 0:02:40]} 21. Rxa5 {[%clk 0:01:42]}  Rxa5 {[%clk 0:02:38]} 22. Nxa5 {[%clk 0:01:43]}  Bxb2 {[%clk 0:02:37]} 23. Rb1 {[%clk 0:01:39]}  Bd4 {[%clk 0:02:37]} 24. Rb7 {[%clk 0:01:33]}  Nc5 {[%clk 0:02:34]} 25. Re7 {[%clk 0:01:07]}  Rxe7 {[%clk 0:02:18]} 26. Bxe7 {[%clk 0:01:07]}  Nd3 {[%clk 0:02:18]} 27. Bh4 {[%clk 0:00:49]}  Kf7 {[%clk 0:01:52]} 28. Nc6 {[%clk 0:00:35]}  Bc5 {[%clk 0:01:49]} 29. Kf1 {[%clk 0:00:30]}  h6 {[%clk 0:01:49]} 30. Nd8+ {[%clk 0:00:18]}  Ke8 {[%clk 0:01:47]} 31. Ne6 {[%clk 0:00:13]}  Bd6 {[%clk 0:01:47]} 32. Bf6 {[%clk 0:00:11]}  Nb4 {[%clk 0:01:41]} 33. Bg7 {[%clk 0:00:09]}  h5 {[%clk 0:01:39]} 34. Bd4 {[%clk 0:00:07]}  Nxd5 {[%clk 0:01:37]} 35. f3 {[%clk 0:00:06]}  exf3 {[%clk 0:01:32]} 36. gxf3 {[%clk 0:00:07]}  Kf7 {[%clk 0:01:30]} 37. Ng5+ {[%clk 0:00:07]}  Ke7 {[%clk 0:01:30]} 38. Ke2 {[%clk 0:00:05]}  Bf4 {[%clk 0:01:24]} 39. h4 {[%clk 0:00:04]}  Bxg5 {[%clk 0:01:24]} 40. hxg5 {[%clk 0:00:05]}  Ke6 {[%clk 0:01:19]} 41. Kf2 {[%clk 0:00:05]}  f4 {[%clk 0:01:16]} 42. Kg2 {[%clk 0:00:03]}  Kf5 {[%clk 0:01:17]} 43. Kf2 {[%clk 0:00:02]}  Kxg5 {[%clk 0:01:17]} 44. Ba7 {[%clk 0:00:01]}  Kf5 {[%clk 0:01:17]} 0-1


[Site "https://www.chess.com"]

[Event "Titled Tuesday Blitz December 14 2021"]
[White "Sarana, Alexey"]
[Black "Durarbayli, Vasif"]
[WhiteFideId "24133795"]
[BlackFideId "13402935"]
[WhiteElo "2672"]
[BlackElo "2599"]
[Result "1-0"]
[Round "09"]
[TimeControl "180+1"]
[Date "2021.12.14"]
[WhiteClock "0:00:46"]
[BlackClock "0:00:01"]

1. d4 {[%clk 0:02:59]}  Nf6 {[%clk 0:03:00]} 2. c4 {[%clk 0:02:59]}  e6 {[%clk 0:03:00]} 3. Nc3 {[%clk 0:03:00]}  Bb4 {[%clk 0:03:00]} 4. e3 {[%clk 0:03:00]}  O-O {[%clk 0:03:00]} 5. Bd3 {[%clk 0:03:00]}  b6 {[%clk 0:02:59]} 6. e4 {[%clk 0:02:59]}  Ne8 {[%clk 0:02:50]} 7. Ne2 {[%clk 0:02:54]}  Bb7 {[%clk 0:02:42]} 8. a3 {[%clk 0:02:53]}  Be7 {[%clk 0:02:36]} 9. O-O {[%clk 0:02:53]}  d6 {[%clk 0:02:19]} 10. f4 {[%clk 0:02:51]}  Nd7 {[%clk 0:02:17]} 11. Be3 {[%clk 0:02:50]}  e5 {[%clk 0:02:11]} 12. fxe5 {[%clk 0:02:36]}  dxe5 {[%clk 0:02:10]} 13. d5 {[%clk 0:02:36]}  Bc5 {[%clk 0:02:07]} 14. Qd2 {[%clk 0:02:36]}  Qg5 {[%clk 0:01:42]} 15. Rf3 {[%clk 0:02:30]}  Bxe3+ {[%clk 0:01:40]} 16. Rxe3 {[%clk 0:02:23]}  Nc5 {[%clk 0:01:32]} 17. Bc2 {[%clk 0:02:06]}  Nd6 {[%clk 0:01:31]} 18. b3 {[%clk 0:02:06]}  f5 {[%clk 0:01:16]} 19. exf5 {[%clk 0:01:22]}  Nxf5 {[%clk 0:01:02]} 20. Rd3 {[%clk 0:01:21]}  Qxd2 {[%clk 0:00:19]} 21. Rxd2 {[%clk 0:01:22]}  a5 {[%clk 0:00:20]} 22. Bxf5 {[%clk 0:01:05]}  Rxf5 {[%clk 0:00:19]} 23. Rb1 {[%clk 0:01:05]}  Raf8 {[%clk 0:00:18]} 24. Ng3 {[%clk 0:01:04]}  Rf4 {[%clk 0:00:17]} 25. a4 {[%clk 0:00:54]}  Bc8 {[%clk 0:00:16]} 26. Re2 {[%clk 0:00:52]}  Bf5 {[%clk 0:00:07]} 27. Nxf5 {[%clk 0:00:53]}  R8xf5 {[%clk 0:00:07]} 28. Nb5 {[%clk 0:00:53]}  Rf7 {[%clk 0:00:01]} 29. Rxe5 {[%clk 0:00:52]}  h6 {[%clk 0:00:02]} 30. h3 {[%clk 0:00:50]}  Rf2 {[%clk 0:00:01]} 31. Re3 {[%clk 0:00:50]}  Rd2 {[%clk 0:00:01]} 32. Rf1 {[%clk 0:00:46]} 1-0


[Site "https://www.chess.com"]